bitfinex-derivatives/quotes_SOLF0:USTF0_20240820
["timestamp","ask_amount","ask_price","bid_price","bid_amount"]
[1724137319360,0.0468977,147.03,147.01,3.3992]
[1724137323761,0.0468977,147.03,147.0,3.3994]
[1724137323959,3.4457977,147.03,147.0,3.3994]
[1724137324163,0.0468977,147.03,146.99,15.1426]
[1724137324358,10.4768977,147.03,146.98,1.35859065]
[1724137324969,3.3991,147.02,146.98,1.35859065]
[1724137325654,10.43,147.02,146.98,1.35859065]
[1724137326162,13.8291,147.02,146.98,4.75839065]
[1724137327159,13.8291,147.02,146.99,3.3997]
[1724137329061,3.3991,147.02,146.99,3.3997]
[1724137329966,13.8757977,147.03,146.99,3.3997]
[1724137330167,10.4768977,147.03,146.99,3.3997]
[1724137330370,10.4768977,147.03,146.98,4.75839065]
[1724137330571,10.43,147.02,146.98,1.35859065]
[1724137330962,3.3995,147.01,146.98,1.35859065]
[1724137331357,10.43,147.02,146.98,1.35859065]
[1724137331559,3.3993,147.01,146.98,0.05169065]
[1724137331869,13.84504713,147.02,146.98,0.05169065]
[1724137332064,10.43,147.0,146.98,0.05169065]
[1724137332865,3.3997,146.99,146.98,0.05169065]
[1724137334973,13.87564675,147.0,146.98,0.05169065]
[1724137335767,3.44564675,147.0,146.98,0.05169065]
[1724137337374,13.87564675,147.0,146.98,0.05169065]
[1724137338074,13.8297,146.99,146.98,0.05169065]
[1724137338266,10.43,146.99,146.94,1.2893]
[1724137338670,3.4001,146.98,146.94,3.4007]
[1724137339263,3.4001,146.98,146.95,0.04554689]
[1724137339667,3.4001,146.98,146.95,3.44614689]
[1724137339870,3.3998,146.99,146.95,3.44614689]
[1724137340568,3.3998,146.99,146.96,3.4004]
[1724137340873,3.3998,146.99,146.95,0.04554689]
[1724137341467,3.3998,146.99,146.95,3.44604689]
[1724137344469,3.3998,146.99,146.96,3.4004]
[1724137348180,0.04604675,147.0,146.96,10.43]
[1724137348775,0.04604675,147.0,146.97,3.4001]
[1724137352775,3.44554675,147.0,146.97,3.4001]
[1724137355983,3.44554675,147.0,146.96,3.4003]
[1724137356881,3.44554675,147.0,146.97,3.4001]
[1724137357983,3.44554675,147.0,146.96,3.4003]
[1724137358373,13.8299,146.99,146.95,3.44604689]
[1724137358588,10.43,146.99,146.95,0.04554689]
[1724137358881,3.4001,146.98,146.95,0.04554689]
[1724137359079,10.43,146.99,146.95,0.04554689]
[1724137359279,10.43,146.97,146.95,0.04554689]
[1724137359476,13.8304,146.97,146.95,0.04554689]
[1724137359680,10.43,146.97,146.95,0.04554689]
[1724137359882,3.4009,146.94,146.88,11.7281]
[1724137360084,3.4009,146.94,146.9,3.4016]
[1724137360085,10.43,146.94,146.9,3.4016]
[1724137360383,13.831,146.94,146.9,3.4016]
[1724137360781,3.401,146.94,146.9,3.4016]
[1724137360977,3.401,146.94,146.91,3.4015]
[1724137361578,0.04758994,146.93,146.92,3.4013]
[1724137366489,10.43,146.98,146.94,3.4007]
[1724137366691,10.43,146.99,146.91,1.29144191]
[1724137366895,1.3457,147.03,146.94,10.43]
[1724137367192,10.43,147.01,146.94,10.43]
[1724137367491,0.04863929,146.99,146.96,0.05085984]
[1724137368793,3.4,146.98,146.96,3.45125984]
[1724137369496,3.44843929,146.99,146.96,3.45125984]
[1724137370097,3.4,146.98,146.96,0.05085984]
[1724137372797,3.44843929,146.99,146.96,0.05085984]
[1724137372990,13.87843929,146.99,146.96,0.05085984]
[1724137373794,3.4,146.98,146.96,0.05085984]
[1724137374099,10.43,146.98,146.96,0.05085984]
[1724137374596,13.8301,146.98,146.96,0.05085984]
[1724137378095,10.43,146.98,146.91,1.2458]
[1724137378394,10.43,146.95,146.91,1.2458]
[1724137378699,13.8308,146.95,146.92,3.4013]
[1724137378897,13.8308,146.95,146.91,1.2458]
[1724137379101,3.4009,146.94,146.91,4.6473]
[1724137379499,3.45103366,146.94,146.92,0.04425176]
[1724137382695,0.05013366,146.94,146.92,0.04425176]
[1724137382892,3.4008,146.95,146.92,0.04425176]
[1724137382893,3.36193345,147.01,146.93,10.43]
[1724137383203,3.3998,146.99,146.96,13.8303]
[1724137383799,10.43,147.0,146.94,10.43]
[1724137384206,0.04988802,146.98,146.96,0.04631624]
[1724137385099,13.8302,146.97,146.96,0.04631624]
[1724137396211,3.4007,146.95,146.92,3.4012]
[1724137396412,10.43,146.95,146.91,1.2458]
[1724137396606,3.4009,146.94,146.91,1.2458]
[1724137396807,10.43,146.95,146.9,3.4016]
[1724137397311,3.4012,146.93,146.91,0.04987369]
[1724137401516,3.4013,146.92,146.91,0.04987369]
[1724137403516,3.4018,146.9,146.88,1.3564]
[1724137403715,13.86843777,146.93,146.88,1.3564]
[1724137403908,10.43,146.92,146.87,4.7336]
[1724137404109,3.4019,146.9,146.87,4.7336]
[1724137404616,3.44949548,146.9,146.87,4.78541153]
[1724137406315,0.04759548,146.9,146.87,0.05181153]
[1724137406816,3.402,146.89,146.87,0.05181153]
[1724137409212,3.402,146.89,146.87,3.45421153]
[1724137409712,0.04759548,146.9,146.87,10.48181153]
[1724137409913,0.04759548,146.9,146.88,10.43]
[1724137410313,0.04759548,146.9,146.89,3.402]
[1724137410714,0.04759548,146.9,146.89,13.832]
[1724137413612,71.45035171,146.95,146.89,10.43]
[1724137413914,10.43,146.99,146.93,10.43]
[1724137414316,10.43,146.99,146.94,10.43]
[1724137414513,3.41271806,147.0,146.94,10.43]
[1724137414815,0.04441453,146.98,146.96,3.4003]
[1724137418724,3.44431453,146.98,146.95,3.44666634]
[1724137422324,3.44431453,146.98,146.96,3.4003]
[1724137422921,0.04441453,146.98,146.96,13.8304]
[1724137423115,0.04441453,146.98,146.96,15.1079]
[1724137424528,0.04441453,146.98,146.96,4.6779]
[1724137424922,3.4002,146.97,146.95,0.04616634]
[1724137425223,0.04441453,146.98,146.95,0.04616634]
[1724137425827,0.04441453,146.98,146.95,3.44666634]
[1724137426527,0.04441453,146.98,146.96,3.4004]
[1724137429127,0.04441453,146.98,146.95,10.47616634]
[1724137429331,0.04441453,146.98,146.97,3.4002]
[1724137430222,0.04441453,146.98,146.95,0.04616634]
[1724137430417,3.44441453,146.98,146.95,0.04616634]
[1724137430724,0.04441453,146.98,146.96,3.4003]
[1724137430923,0.04441453,146.98,146.95,10.47616634]
[1724137431720,0.04441453,146.98,146.96,3.4004]
[1724137433126,3.44441453,146.98,146.96,3.4004]
[1724137436627,3.44441453,146.98,146.95,0.04616634]
[1724137436840,3.44441453,146.98,146.95,3.44666634]
[1724137437034,3.44441453,146.98,146.95,0.04616634]
[1724137437234,3.44441453,146.98,146.96,3.4004]
[1724137437634,3.44441453,146.98,146.95,0.04616634]
[1724137438137,3.44441453,146.98,146.95,3.44666634]
[1724137438635,3.4002,146.97,146.95,3.44666634]
[1724137438837,0.04441453,146.98,146.96,3.4004]
[1724137439236,3.44451453,146.98,146.96,3.4004]
[1724137439434,0.04441453,146.98,146.95,0.04616634]
[1724137439735,3.4004,146.96,146.95,0.04616634]
[1724137440440,0.04441453,146.98,146.95,0.04616634]
[1724137440640,0.04441453,146.98,146.96,10.43]
[1724137441343,0.04441453,146.98,146.97,3.4002]
[1724137442134,0.04441453,146.98,146.96,3.4002]
[1724137443137,0.04441453,146.98,146.97,3.4002]
[1724137446039,0.04441453,146.98,146.97,13.8302]
[1724137448731,3.3992,147.02,146.99,3.3995]
[1724137448939,3.3992,147.02,146.99,13.8295]
[1724137449138,3.3992,147.02,147.0,3.3995]
[1724137449646,3.44783544,147.02,147.0,3.44801328]
[1724137450630,3.44783544,147.02,147.0,0.04851328]
[1724137450831,3.3993,147.01,147.0,0.04851328]
[1724137453444,3.44783544,147.02,147.0,0.04851328]
[1724137454038,0.04863544,147.02,147.01,3.3993]
[1724137454239,22.32114933,147.08,147.01,3.3993]
[1724137454441,6.56073378,147.07,147.01,3.3993]
[1724137454648,11.7296,147.08,147.01,3.3993]
[1724137454843,6.56072893,147.07,147.01,3.3993]
[1724137455147,3.3986,147.04,147.03,0.04659255]
[1724137455738,3.44516532,147.05,147.03,0.04659255]
[1724137455942,0.04666532,147.05,147.03,0.04659255]
[1724137456345,3.3986,147.04,147.03,0.04659255]
[1724137456544,0.04666532,147.05,147.03,0.04659255]
[1724137457748,3.3986,147.04,147.03,0.04659255]
[1724137464746,10.43,147.04,146.94,1.3535]
[1724137465049,10.43,147.04,146.98,10.43]
[1724137465250,3.3989,147.03,146.99,3.3995]
[1724137465452,3.3989,147.03,147.0,10.43]
[1724137465654,3.44649002,147.03,147.0,10.47552836]
[1724137466857,3.44649002,147.03,147.0,13.87502836]
[1724137468857,3.44649002,147.03,147.0,10.47552836]
[1724137469249,3.44649002,147.03,147.0,0.04552836]
[1724137469548,10.47759002,147.03,147.0,0.04552836]
[1724137469952,3.3991,147.02,147.0,0.04552836]
[1724137470956,3.44649002,147.03,147.0,0.04552836]
[1724137471159,0.04759002,147.03,147.0,0.04552836]
[1724137471543,3.44649002,147.03,147.0,10.47552836]
[1724137472153,0.04759002,147.03,147.0,0.04552836]
[1724137472965,3.36021576,147.02,147.0,0.04552836]
[1724137474061,3.3993,147.01,147.0,0.04552836]
[1724137475657,3.3991,147.02,147.0,0.04552836]
[1724137482967,0.04759002,147.03,147.01,10.43]
[1724137483466,0.04759002,147.03,147.02,3.399]
[1724137483865,62.29172583,147.07,147.01,13.1157]
[1724137484171,62.29172583,147.07,147.05,10.43]
[1724137484656,62.29172583,147.07,147.05,13.8283]
[1724137484862,3.3977,147.08,147.05,13.8283]
[1724137485061,0.04806594,147.07,147.05,13.87559943]
[1724137486061,0.04806594,147.07,147.06,3.3981]
[1724137487667,0.04806594,147.07,147.06,13.8281]
[1724137490870,0.04806594,147.07,147.05,0.04729943]
[1724137491060,0.04806594,147.07,147.05,10.47729943]
[1724137491368,0.04806594,147.07,147.06,10.43]
[1724137491562,0.04806594,147.07,147.06,13.8281]
[1724137500075,0.04806594,147.07,147.06,3.3981]
[1724137500973,0.04806594,147.07,147.05,3.44559943]
[1724137501176,3.44596594,147.07,147.05,3.44559943]
[1724137501380,0.04806594,147.07,147.05,3.44559943]
[1724137502179,0.04806594,147.07,147.06,3.3981]
[1724137504271,13.83119373,147.13,147.08,3.3975]
[1724137505081,3.3971,147.11,147.08,3.3975]
[1724137505480,3.4472936,147.11,147.08,3.44427391]
[1724137507781,10.43,147.09,147.02,1.2806]
[1724137508081,74.61221769,147.11,147.02,3.3988]
[1724137508278,10.43,147.08,147.02,3.3988]
[1724137508474,10.43,147.09,147.03,10.43]
[1724137509072,10.43,147.08,147.01,2.6857]
[1724137509382,10.43,147.08,147.02,10.43]
[1724137509585,0.04824818,147.07,147.05,0.04870286]
[1724137510276,3.3982,147.06,147.05,0.04870286]
[1724137511685,3.44614818,147.07,147.05,0.04870286]
[1724137511889,0.04824818,147.07,147.05,0.04870286]
[1724137512691,0.04824818,147.07,147.06,10.43]
[1724137514986,0.04824818,147.07,147.05,10.47870286]
[1724137515279,0.04824818,147.07,147.06,10.43]
[1724137515485,3.44637087,147.14,147.07,3.3978]
[1724137515674,6.55815178,147.13,147.06,2.5748]
[1724137515879,10.43,147.13,147.07,10.43]
[1724137516088,3.3972,147.1,147.07,10.43]
[1724137516277,10.43,147.13,147.07,10.43]
[1724137516585,3.44000839,147.11,147.09,0.04575153]
[1724137517487,0.04290839,147.11,147.09,0.04575153]
[1724137519391,3.44000839,147.11,147.09,0.04575153]
[1724137519787,3.3972,147.1,147.09,0.04575153]
[1724137521285,0.04290839,147.11,147.09,0.04575153]
[1724137521785,3.43990839,147.11,147.09,0.04575153]
[1724137521989,0.04290839,147.11,147.09,0.04575153]
[1724137522286,3.44000839,147.11,147.09,0.04575153]
[1724137524288,3.3972,147.1,147.09,0.04575153]
[1724137529188,0.04290839,147.11,147.09,0.04575153]
[1724137529791,3.43990839,147.11,147.09,0.04575153]
[1724137529989,0.04290839,147.11,147.09,0.04575153]
[1724137530190,3.3972,147.1,147.09,0.04575153]
[1724137530592,0.04290839,147.11,147.09,0.04575153]
[1724137530893,3.3972,147.1,147.09,0.04575153]
[1724137531991,16.98961817,147.1,147.03,10.43]
[1724137532194,10.43,147.1,147.03,10.43]
[1724137532393,3.3977,147.08,147.04,3.3984]
[1724137532593,10.43,147.1,147.0,1.3548]
[1724137532795,10.43,147.1,147.03,10.43]
[1724137532994,0.04387144,147.07,147.05,0.05169779]
[1724137534097,3.44177144,147.07,147.05,0.05169779]
[1724137535998,0.04387144,147.07,147.05,10.48169779]
[1724137536215,0.04387144,147.07,147.06,10.43]
[1724137536898,0.04387144,147.07,147.06,13.8281]
[1724137540899,0.04387144,147.07,147.06,3.3981]
[1724137541199,0.04387144,147.07,147.06,13.8281]
[1724137542298,0.04387144,147.07,147.06,10.43]
[1724137543496,0.04387144,147.07,147.06,13.8281]
[1724137544000,3.3973,147.1,147.07,3.3976]
[1724137544201,3.3973,147.1,147.08,10.43]
[1724137544805,3.3974,147.09,147.08,10.43]
[1724137545803,3.44187616,147.1,147.08,13.8276]
[1724137546000,0.04457616,147.1,147.08,13.8276]
[1724137550298,0.04457616,147.1,147.09,3.3974]
[1724137550497,0.04457616,147.1,147.08,10.43]
[1724137551201,0.04457616,147.1,147.09,3.3974]
[1724137551392,0.04457616,147.1,147.08,10.43]
[1724137551999,0.04457616,147.1,147.09,3.3974]
[1724137552201,6.60247613,147.1,147.09,3.3974]
[1724137553492,3.3974,147.09,147.07,0.04471178]
[1724137553699,0.04457616,147.1,147.07,0.04471178]
[1724137554307,3.44187616,147.1,147.07,3.44241178]
[1724137554506,0.04457616,147.1,147.08,10.43]
[1724137555007,0.04457616,147.1,147.08,13.8274]
[1724137555900,0.04457616,147.1,147.07,3.44251178]
[1724137555901,3.44187616,147.1,147.07,3.44251178]
[1724137556207,3.44187616,147.1,147.07,13.87251178]
[1724137556908,3.44187616,147.1,147.07,10.47471178]
[1724137557099,3.3975,147.09,147.07,10.47471178]
[1724137558101,3.44187616,147.1,147.07,10.47471178]
[1724137558405,6.55851022,147.09,147.07,10.47471178]
[1724137558707,3.44187616,147.1,147.07,10.47471178]
[1724137558901,3.3976,147.08,147.07,0.04471178]
[1724137559102,0.04457616,147.1,147.07,0.04471178]
[1724137559297,6.55859514,147.09,147.07,0.04471178]
[1724137559501,3.3975,147.09,147.07,0.04471178]
[1724137559902,6.55867123,147.08,147.07,0.04471178]
[1724137561005,9.95627123,147.08,147.07,0.04471178]
[1724137561605,3.3976,147.08,147.07,0.04471178]
[1724137561798,9.95665936,147.08,147.07,0.04471178]
[1724137562199,9.95658054,147.08,147.07,0.04471178]
[1724137564112,6.55898054,147.08,147.07,0.04471178]
[1724137565506,6.55898054,147.08,147.07,10.47471178]
[1724137566014,3.3974,147.09,147.07,10.47471178]
[1724137566508,6.55880217,147.08,147.07,10.47471178]
[1724137566703,9.95640217,147.08,147.07,10.47471178]
[1724137566905,9.95640217,147.08,147.07,0.04471178]
[1724137567300,6.55880217,147.08,147.07,0.04471178]
[1724137567911,3.3976,147.09,147.07,0.04471178]
[1724137568206,6.55880815,147.08,147.07,0.04471178]
[1724137569805,3.3976,147.09,147.07,0.04471178]
[1724137570005,6.55896293,147.08,147.07,0.04471178]
[1724137570712,3.44177616,147.1,147.07,0.04471178]
[1724137570907,6.55846044,147.09,147.07,0.04471178]
[1724137571108,3.3976,147.09,147.07,0.04471178]
[1724137571308,6.55880956,147.08,147.07,0.04471178]
[1724137572814,9.95640956,147.08,147.07,0.04471178]
[1724137573714,3.3984,147.05,147.02,2.6497]
[1724137573918,3.42847794,147.07,147.02,1.2748]
[1724137574104,10.59038804,147.07,147.01,10.43]
[1724137574310,3.3984,147.05,147.01,10.43]
[1724137574516,10.43,147.07,147.01,10.43]
[1724137574719,6.55987127,147.06,147.01,10.43]
[1724137574917,10.43,147.07,147.01,10.43]
[1724137575110,3.44964415,147.05,147.03,0.04973708]
[1724137575311,0.05114415,147.05,147.03,0.04973708]
[1724137575515,3.44410362,147.04,147.03,0.04973708]
[1724137576015,10.00512221,147.04,147.03,0.04973708]
[1724137576809,13.40372221,147.04,147.03,0.04973708]
[1724137577019,10.00512221,147.04,146.98,11.7071]
[1724137577319,10.48114415,147.05,146.98,11.7071]
[1724137577617,6.56133075,147.04,146.98,15.1069]
[1724137577820,10.48114415,147.05,146.98,15.1069]
[1724137578018,3.399,147.03,146.98,15.1069]
[1724137578319,3.399,147.03,147.0,0.04738824]
[1724137578718,0.04483396,147.02,147.0,0.04738824]
[1724137578919,0.04483396,147.02,147.0,10.47738824]
[1724137581816,3.44383396,147.02,147.0,10.47738824]
[1724137582018,0.04483396,147.02,147.0,13.87678824]
[1724137582411,0.04483396,147.02,147.0,0.04738824]
[1724137583718,0.04483396,147.02,147.0,3.44688824]
[1724137585016,0.04483396,147.02,147.01,10.43]
[1724137588120,0.04483396,147.02,147.0,0.04738824]
[1724137589727,0.04483396,147.02,147.0,13.87688824]
[1724137589933,0.04483396,147.02,147.0,10.47738824]
[1724137590315,0.04483396,147.02,147.01,3.3993]
[1724137592739,0.04483396,147.02,147.0,0.04738824]
[1724137593229,0.04483396,147.02,147.01,10.43]
[1724137593625,0.04483396,147.02,147.01,13.8293]
[1724137594229,0.04483396,147.02,147.0,13.87678824]
[1724137596535,0.04483396,147.02,147.01,3.3993]
[1724137596927,0.04483396,147.02,147.0,10.47738824]
[1724137597128,0.04483396,147.02,147.0,13.87678824]
[1724137597328,0.04483396,147.02,147.0,0.04738824]
[1724137597725,10.47483396,147.02,147.0,0.04738824]
[1724137597930,3.3993,147.01,147.0,0.04738824]
[1724137599025,10.43,147.01,146.91,1.3615]
[1724137599232,10.43,146.99,146.93,10.43]
[1724137599537,10.43,147.01,146.94,10.43]
[1724137599740,3.4001,146.98,146.94,13.8307]
[1724137600333,3.4001,146.98,146.95,3.4006]
[1724137600532,0.04315295,146.97,146.96,10.43]
[1724137601335,3.44335295,146.97,146.96,10.43]
[1724137601841,0.04315295,146.97,146.96,10.43]
[1724137603739,0.04315295,146.97,146.9,10.43]
[1724137603740,13.79825504,146.97,146.9,10.43]
[1724137604041,3.4014,146.92,146.9,10.43]
[1724137604539,3.4014,146.92,146.88,3.4021]
[1724137604738,3.4016,146.91,146.9,10.47406487]
[1724137605137,3.4016,146.91,146.9,0.04406487]
[1724137605438,10.47406706,146.92,146.87,1.3328]
[1724137605842,3.4023,146.88,146.87,1.3328]
[1724137607337,3.4023,146.88,146.86,10.47967045]
[1724137607541,0.04869628,146.89,146.86,0.04967045]
[1724137607542,3.4025,146.87,146.86,0.04967045]
[1724137608142,3.4023,146.88,146.86,0.04967045]
[1724137609344,10.43,146.88,146.81,2.7127]
[1724137609551,10.43,146.88,146.81,13.1427]
[1724137609755,10.43,146.88,146.82,10.43]
[1724137609947,3.4026,146.87,146.82,10.43]
[1724137610154,3.4026,146.87,146.81,2.7127]
[1724137610355,0.04815721,146.85,146.83,13.87841304]
[1724137610650,0.04815721,146.85,146.83,10.47511304]
[1724137610855,64.75061746,146.91,146.85,3.4028]
[1724137611057,64.75061746,146.91,146.86,10.43]
[1724137611250,3.4022,146.89,146.85,3.4028]
[1724137611445,3.4022,146.89,146.85,13.8328]
[1724137611656,61.38766401,146.91,146.86,3.4027]
[1724137611853,3.44603374,146.9,146.87,0.04930819]
[1724137612160,0.04413374,146.9,146.87,0.04930819]
[1724137612352,0.04413374,146.9,146.87,10.47930819]
[1724137612962,0.04413374,146.9,146.87,13.88160819]
[1724137613259,0.04413374,146.9,146.87,10.47930819]
[1724137613955,0.04413374,146.9,146.88,3.4021]
[1724137615258,0.04413374,146.9,146.89,3.402]
[1724137615456,13.87175474,146.96,146.89,10.43]
[1724137615655,3.4008,146.95,146.89,10.43]
[1724137615962,21.0528,147.0,146.91,3.4014]
[1724137616256,3.4009,146.94,146.91,3.4014]
[1724137616557,3.4007,146.95,146.92,3.4013]
[1724137616753,0.05009571,146.94,146.92,3.4013]
[1724137618560,3.4011,146.93,146.91,0.04814987]
[1724137618861,10.43,146.92,146.91,0.04814987]
[1724137619060,0.05009571,146.94,146.91,0.04814987]
[1724137619450,10.43,146.93,146.91,0.04814987]
[1724137620760,13.8312,146.93,146.91,0.04814987]
[1724137622663,13.88119571,146.94,146.91,0.04814987]
[1724137623462,3.4013,146.92,146.91,0.04814987]
[1724137623863,10.43,146.93,146.91,0.04814987]
[1724137624867,13.8313,146.92,146.91,0.04814987]
[1724137625055,0.05009571,146.94,146.91,0.04814987]
[1724137625363,10.43,146.92,146.91,0.04814987]
[1724137625763,0.05009571,146.94,146.91,0.04814987]
[1724137626661,3.45119571,146.94,146.91,0.04814987]
[1724137626855,0.05009571,146.94,146.91,0.04814987]
[1724137627162,10.43,146.93,146.91,0.04814987]
[1724137628663,10.43,146.92,146.81,3.904]
[1724137628966,10.43,146.9,146.84,10.43]
[1724137629371,10.43,146.9,146.87,3.4023]
[1724137629664,10.43,146.9,146.87,0.04326121]
[1724137629965,10.48106145,146.9,146.88,3.4023]
[1724137630358,0.05106145,146.9,146.88,3.4023]
[1724137630562,0.05106145,146.9,146.87,0.04326121]
[1724137631360,0.05106145,146.9,146.87,10.47326121]
[1724137631567,0.05106145,146.9,146.89,3.402]
[1724137634861,0.05106145,146.9,146.87,0.04326121]
[1724137635461,0.05106145,146.9,146.88,3.4021]
[1724137638269,0.05106145,146.9,146.89,3.402]
[1724137639266,10.43,146.96,146.91,3.4015]
[1724137639465,13.84373821,146.96,146.91,3.4015]
[1724137639762,3.4008,146.95,146.91,3.4015]
[1724137640165,0.05170135,146.94,146.92,3.44771834]
[1724137643677,48.5164,147.06,146.92,0.04641834]
[1724137643877,10.43,146.98,146.93,1.2981]
[1724137644782,0.05197739,146.97,146.95,3.4005]
[1724137644976,0.05197739,146.97,146.94,0.04835811]
[1724137645369,0.05197739,146.97,146.95,3.4005]
[1724137647784,0.05197739,146.97,146.96,3.4004]
[1724137653075,10.43,147.07,146.97,10.43]
[1724137653385,10.43,147.07,146.93,1.2981]
[1724137653386,10.43,147.03,146.98,1.2639]
[1724137653687,10.43,147.01,146.98,1.2639]
[1724137654180,10.47943279,147.01,146.98,1.30808414]
[1724137654679,0.04943279,147.01,146.99,7.03067365]
[1724137654879,0.04943279,147.01,147.0,3.3995]
[1724137655083,0.04943279,147.01,147.0,10.43017365]
[1724137657490,0.04943279,147.01,147.0,3.3995]
[1724137657685,0.04943279,147.01,147.0,10.43267297]
[1724137659186,1.2919,147.1,147.01,3.399]
[1724137659391,10.43,147.03,147.01,3.399]
[1724137659587,10.43,147.03,146.98,1.2639]
[1724137659794,10.43,147.03,146.98,8.29470865]
[1724137659992,10.43,147.03,147.02,3.399]
[1724137664995,10.43,147.03,147.01,3.44803105]
[1724137668893,10.43,147.03,147.01,0.04883105]
[1724137669700,10.43,147.03,147.01,3.44803105]
[1724137669995,10.43,147.02,147.01,0.04883105]
[1724137670494,10.43,147.02,146.95,1.2937]
[1724137670695,10.43,146.99,146.96,7.03166174]
[1724137671202,10.43,146.99,146.97,3.4001]
[1724137671498,10.43,146.99,146.98,7.03166174]
[1724137671692,10.47416651,146.99,146.98,7.03176623]
[1724137671887,0.04416651,146.99,146.98,7.03176623]
[1724137672197,10.47416651,146.99,146.98,7.03176623]
[1724137674990,0.04416651,146.99,146.98,7.03176623]
[1724137675293,10.47416651,146.99,146.97,0.05127696]
[1724137675492,10.43,146.98,146.97,0.05127696]
[1724137675888,13.8299,146.98,146.97,0.05127696]
[1724137676096,3.3999,146.98,146.97,0.05127696]
[1724137676295,3.43939401,146.99,146.97,0.05127696]
[1724137676491,10.43,146.98,146.97,0.05127696]
[1724137677005,13.8299,146.98,146.97,0.05127696]
[1724137678903,13.8299,146.98,146.95,7.0336723]
[1724137678904,3.4004,146.96,146.95,7.0336723]
[1724137679103,13.8304,146.96,146.92,11.15856218]
[1724137679306,10.43,146.96,146.93,7.03448573]
[1724137679595,3.4007,146.95,146.94,7.03448573]
[1724137680001,3.4007,146.95,146.93,0.04659394]
[1724137680897,10.47419126,146.96,146.93,0.04659394]
[1724137681097,0.04419126,146.96,146.93,0.04659394]
[1724137681691,0.04419126,146.96,146.94,3.4008]
[1724137681895,0.04419126,146.96,146.95,7.03547449]
[1724137682300,3.44459126,146.96,146.93,3.44769394]
[1724137682505,3.44459126,146.96,146.94,7.0358095]
[1724137682691,3.44459126,146.96,146.93,0.04659394]
[1724137683094,10.43,146.95,146.93,0.04659394]
[1724137683498,10.43,146.95,146.93,7.0825582]
[1724137684195,3.4009,146.94,146.93,7.0825582]
[1724137684399,13.8309,146.94,146.93,7.0825582]
[1724137684608,13.8309,146.94,146.93,0.04659394]
[1724137685401,10.43,146.94,146.93,0.04659394]
[1724137686093,13.8309,146.94,146.93,0.04659394]
[1724137686293,10.43,146.95,146.93,0.04659394]
[1724137687408,3.44469126,146.96,146.93,0.04659394]
[1724137688211,0.04419126,146.96,146.93,0.04659394]
[1724137689100,3.44469126,146.96,146.93,0.04659394]
[1724137689506,13.87469126,146.96,146.93,0.04659394]
[1724137689900,3.4007,146.95,146.93,0.04659394]
[1724137692809,3.44459126,146.96,146.93,0.04659394]
[1724137693511,0.04419126,146.96,146.93,3.44769394]
[1724137693813,0.04419126,146.96,146.93,0.04659394]
[1724137695198,0.04419126,146.96,146.94,3.4007]
[1724137695902,0.04419126,146.96,146.95,3.4006]
[1724137696104,0.04419126,146.96,146.93,0.04659394]
[1724137696509,0.04419126,146.96,146.94,3.4009]
[1724137697907,0.04419126,146.96,146.95,3.4006]
[1724137698106,0.04419126,146.96,146.93,0.04659394]
[1724137698817,0.04419126,146.96,146.94,3.4007]
[1724137702814,1.3131,147.04,146.93,10.47659394]
[1724137703011,10.43,146.99,146.94,1.3585]
[1724137703209,10.43,146.99,146.96,3.4003]
[1724137703409,10.43,146.99,146.94,1.3585]
[1724137703610,13.80439431,147.01,146.95,10.43]
[1724137703810,3.3995,147.0,146.95,10.43]
[1724137704013,10.43,146.99,146.94,1.3585]
[1724137704210,10.4764197,146.99,146.97,0.05052996]
[1724137704413,13.8761197,146.99,146.97,0.05052996]
[1724137705015,3.3999,146.98,146.97,0.05052996]
[1724137708722,13.8762197,146.99,146.97,0.05052996]
[1724137710414,0.0464197,146.99,146.97,3.45062996]
[1724137710819,0.0464197,146.99,146.97,0.05052996]
[1724137711118,0.0464197,146.99,146.98,3.3999]
[1724137712229,0.0464197,146.99,146.97,3.45062996]
[1724137715516,0.0464197,146.99,146.97,0.05052996]
[1724137718624,0.0464197,146.99,146.97,3.45062996]
[1724137720027,0.0464197,146.99,146.98,3.3999]
[1724137720915,0.0464197,146.99,146.97,3.45062996]
[1724137728526,3.4462197,146.99,146.97,0.05052996]
[1724137728729,0.0464197,146.99,146.97,0.05052996]